Cogmind - Beta 13 @@@ ROGUE MODE // 2024.04.03 @ 15:14:40 Player: engineer Result: Self-destructed Performance ------------- Evolutions (1) 500 Regions Visited (2) 400 Robots Destroyed (25) 125 Value Destroyed (627) 627 Prototype IDs (0) 0 Alien Tech Used (0) 0 Bonus (0) 0 TOTAL SCORE: 1652 Bonus ------- None Cogmind --------- Core Integrity 213/400 Matter 188/300 Energy 0/100 System Corruption 0% Temperature Cool (0) Movement Treading (160) Location -9/Materials Parts ------- > --- POWER (1) -------- (None) > --- PROPULSION (2) --- Light Treads > --- UTILITY (4) ------ Small Storage Unit Sensor Array Signal Interpreter ECM Suite > --- WEAPON (2) ------- Assault Rifle > --- INVENTORY (8) ---- Aluminum Leg Visual Processing Unit Targeting Computer Peak State ------------ > --- POWER ------------ Ion Engine > --- PROPULSION ------- Light Treads Light Treads > --- UTILITY ---------- Small Storage Unit Sensor Array Signal Interpreter ECM Suite > --- WEAPON ----------- Assault Rifle Assault Rifle > --- INVENTORY -------- Aluminum Leg Visual Processing Unit Targeting Computer Assault Rifle Grenade Launcher [Rating: 9] Favorites ----------- Power Ion Engine Engine Ion Engine Propulsion Aluminum Leg Treads Light Treads Leg Aluminum Leg Utility Small Storage Unit Device Sensor Array Storage Small Storage Unit Processor Signal Interpreter Weapon Light Assault Rifle Energy Gun EM Pulse Gun Ballistic Gun Light Assault Rifle Launcher Grenade Launcher Build | -11 -10 -9 ------- Run | Yrd Mat Mat Slots Evolved 2 | . . 2 Power . | . . . Propulsion . | . . . Utility 2 | . . 2 Weapon . | . . . Parts Attached 18 | 6 7 5 Power 2 | 1 1 . Engine 2 | 1 1 . Core . | . . . Reactor . | . . . Propulsion 4 | 2 2 . Treads 2 | . 2 . Leg 2 | 2 . . Wheel . | . . . Hover . | . . . Flight . | . . . Utility 4 | 1 1 2 Device 2 | . . 2 Storage 1 | 1 . . Processor 1 | . 1 . Hackware . | . . . Protection . | . . . Artifact . | . . . Weapon 8 | 2 3 3 Energy Gun 1 | 1 . . Energy Cannon . | . . . Ballistic Gun 6 | 1 3 2 Ballistic Cannon . | . . . Launcher 1 | . . 1 Special Weapon . | . . . Impact Weapon . | . . . Slashing Weapon . | . . . Piercing Weapon . | . . . Special Melee Weapon . | . . . Unidentified Prototypes . | . . . Parts Lost 6 | . 1 5 Power 2 | . 1 1 Propulsion 1 | . . 1 Utility . | . . . Weapon 3 | . . 3 Highest Loss Streak 5 | . 1 5 To Critical Strikes 1 | . . 1 Average Slot Usage (%) 91 | . 90 97 Engine 12 | . 12 9 Treads 12 | . 10 21 Leg 14 | . 17 . Device 3 | . . 22 Storage 13 | . 14 11 Processor 7 | . 6 11 Energy Gun 3 | . 3 . Ballistic Gun 23 | . 24 21 Naked Turns . | . . . Heaviest Build 17 | 13 14 17 Greatest Support 40 | 20 40 40 Greatest Overweight (x) 2 | 2 . . Average Overweight (x) . | . . . Largest Inventory Capacity 8 | 8 8 8 Average Capacity 7 | 6 8 8 Most Carried 8 | 1 8 6 Average Carried 5 | . 6 4 Final Capacity 8 | 8 8 8 Final Carried 7 | 1 7 3 Class Distribution -------------------- 100% | Mutant Dominant Class ---------------- Mutant | -10/Materials Mutant | -9/Materials Resources | -11 -10 -9 ----------- Run | Yrd Mat Mat Matter Collected 434 | 199 200 35 Remotely . | . . . Salvage Created 891 | . 621 270 Parts 58 | . 38 20 Haulers Intercepted 2 | . 2 . Recyclers Shooed . | . . . Parts Field Recycled . | . . . Retrieved Matter . | . . . Parts Self-Destructed . | . . . Prevented . | . . . Kills | -11 -10 -9 ------- Run | Yrd Mat Mat Combat Hostiles Destroyed 20 | . 12 8 Guns 20 | . 12 8 Classes Destroyed 5 | . 5 . Hauler 2 | . 2 . Operator 1 | . 1 . Watcher 2 | . 2 . Swarmer 6 | . 3 3 Grunt 14 | . 9 5 Best Kill Streak 7 | . 4 7 Combat Bots Only 7 | . 4 7 Max Kills in Single Turn 2 | . 1 2 Gunslinging 1 | . . 1 Exploded . | . . . Melee . | . . . Uniques/NPCs Destroyed . | . . . Combat | -11 -10 -9 -------- Run | Yrd Mat Mat Hostile Shots Fired 167 | . 50 117 Missed 61 | . 17 44 Damage Taken 1307 | . 469 838 Core 289 | . 102 187 Absorbed by Shields . | . . . Core Remaining (%) 79 | 100 59 . Volleys Fired 79 | . 66 13 Largest 2 | . 2 2 Hottest 60 | . 60 40 Shots Fired 154 | . 132 22 Gun 154 | . 132 22 Cannon . | . . . Launcher . | . . . Special . | . . . Kinetic 135 | . 113 22 Thermal . | . . . Explosive . | . . . Electromagnetic 19 | . 19 . Robot Hit Streak 23 | . 15 23 Robot Miss Streak 4 | . 4 . Penetration Max . | . . . Secondary Targets 4 | . . 4 Max Gunslinging Chain 1 | . . 1 Shots Hit Robots 106 | . 84 22 Core Hits 52 | . 40 12 Critical Kills . | . . . Critical Parts Destroyed . | . . . Critical Strikes . | . . . Melee Attacks . | . . . Impact . | . . . Slashing . | . . . Piercing . | . . . Sneak Attacks . | . . . Combat Hostiles . | . . . Follow-up Attacks . | . . . Damage Inflicted 1081 | . 805 276 Guns 1081 | . 805 276 Cannons . | . . . Explosions . | . . . Melee . | . . . Ramming . | . . . Kinetic 898 | . 622 276 Thermal . | . . . Explosive . | . . . Electromagnetic 183 | . 183 . Impact . | . . . Slashing . | . . . Piercing . | . . . Highest Corruption 1 | . 1 . Average Corruption 1 | . 1 . Corruption Purged . | . . . Corruption Blocked . | . . . Effects 3 | . 3 . Message Errors 1 | . 1 . Matter Fused 1 | . 1 . Energy Discharges 1 | . 1 . Overload Shots . | . . . Overflow Damage . | . . . Projectiles . | . . . Explosions . | . . . Melee . | . . . Knockbacks . | . . . Impact . | . . . Kinetic . | . . . Secondary . | . . . Self-Inflicted Damage . | . . . Shots . | . . . Rammed 1 | . 1 . Targets Rammed 1 | . 1 . Kicked . | . . . Crushed . | . . . Highest Temperature 102 | . 102 . Average Temperature 33 | . 33 . Received Heat Transfer 423 | . 186 237 Siege Activations . | . . . Robots Corrupted . | . . . Combat Hostiles . | . . . Parts Fried . | . . . Impact Corruptions . | . . . Robots Melted . | . . . Combat Hostiles . | . . . Parts Melted . | . . . Heat Transferred . | . . . Parts Sabotaged . | . . . Parts Stolen . | . . . Parts Stripped . | . . . Power Chain Reactions . | . . . Alert | -11 -10 -9 ------- Run | Yrd Mat Mat Peak Influence 292 | . 292 170 Initial 15 | . . 15 Average 93 | . 109 32 Maximum Alert Level 1 | . 1 . Low Security (%) 97 | 100 96 100 Level 1 2 | . 3 . Level 2 . | . . . Level 3 . | . . . Level 4 . | . . . Level 5 . | . . . High Security . | . . . Max Security . | . . . Squads Dispatched 3 | . 2 1 Investigation 1 | . . 1 Extermination . | . . . Reinforcement 2 | . 2 . Assault . | . . . Garrison . | . . . Intercept . | . . . Searches Triggered . | . . . Construction Impeded . | . . . Haulers Reinforced . | . . . Active Scanning Responses . | . . . Cargo Convoy Interrupts . | . . . Stealth | -11 -10 -9 --------- Run | Yrd Mat Mat Distress Signals . | . . . Communications Jammed . | . . . Distress Signals . | . . . Times Spotted 38 | . 29 9 Peak Tracking Total 9 | . 5 9 Tactical Retreats 2 | . 2 . Traps | -11 -10 -9 ------- Run | Yrd Mat Mat Traps Triggered 1 | . 1 . Indirectly . | . . . Trap Hack Attempts . | . . . Triggered . | . . . Disarmed . | . . . Reprogrammed . | . . . Reused . | . . . Traps Extracted . | . . . Installed . | . . . Triggered . | . . . Machines | -11 -10 -9 ---------- Run | Yrd Mat Mat Machines Disabled . | . . . Max in Single Turn . | . . . Machines Repaired . | . . . Machines Dismantled . | . . . Machines Sabotaged . | . . . Overloaded Fab Kills . | . . . Hacking | -11 -10 -9 --------- Run | Yrd Mat Mat Machines Accessed 8 | . 7 1 Terminals 6 | . 5 1 Fabricators . | . . . Repair Stations 1 | . 1 . Recycling Units 1 | . 1 . Scanalyzers . | . . . Garrison Access . | . . . Total Hacks 19 | . 16 3 Successful 8 | . 6 2 Failed 11 | . 10 1 Catastrophic 1 | . 1 . Database Lockouts . | . . . Manual 2 | . 2 . Terminals 15 | . 12 3 Fabricators . | . . . Repair Stations 3 | . 3 . Recycling Units 1 | . 1 . Scanalyzers . | . . . Garrison Access . | . . . Terminal Hacks 6 | . 4 2 Record 1 | . . 1 Alert Level 1 | . 1 . Locate Traps 3 | . 3 . Hauler Manifests 1 | . . 1 Fabricator Hacks . | . . . Repair Station Hacks 1 | . 1 . Scan Component 1 | . 1 . Recycling Unit Hacks 1 | . 1 . Report Inventory 1 | . 1 . Scanalyzer . | . . . Garrison Access Hacks . | . . . Unauthorized Hacks . | . . . Terminals . | . . . Fabricators . | . . . Repair Stations . | . . . Recycling Units . | . . . Scanalyzers . | . . . Garrison Access . | . . . Data Cores Recovered . | . . . Used . | . . . Hacking Detections 7 | . 6 1 Full Trace Events 1 | . . 1 Feedback Events . | . . . Feedback Blocked . | . . . Robot Schematics Acquired . | . . . Robots Built . | . . . Authchips . | . . . Time . | . . . Total Robot Build Rating . | . . . Part Schematics Acquired . | . . . Parts Built . | . . . Authchips . | . . . Time . | . . . Total Part Build Rating . | . . . Parts Repaired . | . . . Time . | . . . Parts Recycled . | . . . Recycled Matter . | . . . Retrieved Matter . | . . . Retrieved Components . | . . . Parts Scanalyzed . | . . . Part Schematics Acquired . | . . . Parts Damaged . | . . . Bothacking | -11 -10 -9 ------------ Run | Yrd Mat Mat Used RIF Installer . | . . . Robots Hacked . | . . . Non-combat . | . . . Combat . | . . . Robot Hacks Applied . | . . . Relay Couplers Released . | . . . Fabnet Peak Effective % . | . . . Robots Rewired . | . . . Allies Hacked . | . . . Hacks Repelled . | . . . Allies | -11 -10 -9 -------- Run | Yrd Mat Mat Total Allies . | . . . Largest Group . | . . . Highest-Rated Group . | . . . Highest-Rated Ally . | . . . Total Orders . | . . . Ally Attacks . | . . . Total Damage . | . . . Kills . | . . . Allies Corrupted . | . . . Allies Melted . | . . . Intel | -11 -10 -9 ------- Run | Yrd Mat Mat Robot Analysis Total . | . . . Derelict Logs Recovered . | . . . Drone Launches . | . . . Drone Recoveries . | . . . Exploration | -11 -10 -9 ------------- Run | Yrd Mat Mat Turns Passed 2111 | 57 1713 341 Spaces Moved 1049 | 41 888 120 Core 11 | 11 . . Treads 535 | . 415 120 Legs 503 | 30 473 . Wheels . | . . . Hover . | . . . Flight . | . . . Fastest Speed 50 | 50 120 160 Average Speed 140 | 110 138 160 Slowest Speed 160 | 150 160 160 Overloaded Moves . | . . . Propulsion Burnouts . | . . . Robots Hopped . | . . . Cave-ins Triggered . | . . . Exploration Rate (%) 35 | 4 88 13 Regions Visited 2 Branch Regions . Pre-discovered Areas . | . . . Known Exits Taken 1 | . 1 . Unknown Exits Taken 1 | 1 . . Scrap Searched . | . . . Spaces Dug . | . . . Terrain Destroyed . | . . . Melee . | . . . Projectile . | . . . AOE . | . . . Terrain Rammed . | . . . Walls Destroyed . | . . . Machines Disabled . | . . . Actions | -11 -10 -9 --------- Run | Yrd Mat Mat Total 1555 | 49 1260 246 Wait 392 | 2 282 108 Move 1047 | 40 887 120 Hop . | . . . Pick Up 12 | 1 11 . Fast Attach 7 | 6 1 . Attach 6 | . 2 4 Detach . | . . . Swap 5 | . 4 1 Drop 6 | . 6 . Fire 79 | . 66 13 Melee . | . . . Ram . | . . . Kick . | . . . Crush 1 | . 1 . Escape Stasis . | . . . Rewire . | . . . Trap . | . . . Miscellaneous . | . . . Route ------- -11/Scrapyard -10/Materials (discovered 3 exits: *Mat x2 / *Min) -9/Materials History --------- Turn | Location | Event 9 | -11/Scrapyard | Discovered new exit (range 16) 58 | -11/Scrapyard | Entered Materials 306 | -10/Materials | Build established: Mutant 983 | -10/Materials | Discovered new exit (range 16) 1000 | -10/Materials | Identified exit to Materials 1498 | -10/Materials | Discovered exit to Materials (range 13) 1667 | -10/Materials | Discovered new exit (range 14) 1686 | -10/Materials | Identified exit to Mines 1771 | -10/Materials | Entered another Materials area 1771 | -9/Materials | Evolved 2 slots: Utility x2 2112 | -9/Materials | Self-destructed Last Messages --------------- 02104_ U-05 Engineer lays Concrete. 02105_ U-05 Engineer builds a Door. 02105_ K-01 Serf cleans the Nuclear Reactor. 02105_ S-10 Pest destroyed. 02105_ Switching to secondary target: G-47 Trooper. 02105_ U-05 Engineer lays Concrete. 02105_ K-01 Serf collects debris. 02106_ U-05 Engineer lays Concrete. 02107_ Assault Rifle destroyed. 02107_ U-05 Engineer builds a Wall. 02108_ K-01 Serf cleans the Nuclear Reactor. 02108_ G-47 Trooper destroyed. 02108_ U-05 Engineer lays Concrete. 02108_ U-05 Engineer builds a Wall. 02108_ K-01 Serf collects debris. 02109_ U-05 Engineer lays Concrete. 02110_ The unstable cave ceiling collapses. 02110_ U-05 Engineer lays Concrete. 02112_ K-01 Serf collects debris. 02112_ U-05 Engineer lays Concrete. Map ----- +----------------------------------------------------+ | ????????????######??????????##########???????????? | | ???????????##!!!!##?????????# #???????????? | | ???????????#! !#?????????# / #???????????? | | ???????????# #?????????# #???????????? | | ??????###### ###???????# #???????????? | | ??????# #???##### #???????????? | | ??????# #???# + #???????????? | | ??????# !=[ ##### # #???????????? | | ??????######+###+## # #???????????? | | ????????# ## ##### # #???????????? | | ????????# """ ##+##### ######+###???????????? | | ????????# """ # # #?????? ##+?????????? | | ????????# """ # "" # ### ????????? | | ????????# # T" + ????????? | | ????????# """ # "" # ### ????????? | | ????????# """ # # #???? ###?????????? | | ????????# """ # ! ### ###???????#???????????? | | ????????# # #?#r####??????????????????? | | ????????##################/######????????????????? | | ????????????????????# = #????????????????? | | ????????????????????# =% ##???????????????? | | ???????????????????## u ##???????????????? | | ???????????????????# #???????????????? | | ???????????????????# t #???????????????? | | ???????????????????# ##???????????????? | | ???????????????????# @ u##???????????????? | | ?????????????????######## u######????????????????? | | ?????????????# # #????????????????? | | ?????????????# = ####????????????????? | | ?????????????# !% ##??????????????????? | | ?????????????# #???????????????????? | | ?????????????+ [=! !!! #???????????????????? | | ?????????????# !%= !! #???????????????????? | | ?????????????# """ [%!!!* #???????????????????? | | ?????????????# """ =%[%k #???????????????????? | | ????????????? ?""" ks[= #???????????????????? | | ?????????????????? %[#???????????????????? | | ????????????????? #???????????????????? | | ?????????????????## #???????????????????? | | ??????????????????# %= #???????????????????? | | ??????????????????# #???????????????????? | | ????????????????????? #???????????????????? | | ??????????????????????? ????????????????????? | | ?????????????????????????????????????????????????? | | ?????????????????????????????????????????????????? | | ?????????????????????????????????????????????????? | | ?????????????????????????????????????????????????? | | ?????????????????????????????????????????????????? | | ?????????????????????????????????????????????????? | | ?????????????????????????????????????????????????? | +----------------------------------------------------+ Best States ------------- Heat Dissipation 28 Energy Generation 10 Energy Capacity 250 Matter Stores 300 Matter Capacity 300 Sight Range 16 Robot Scan Range 14 Terrain Scan Density 10 ECM Strength 1 Evasion (%) 55 Recoil Reduction 2 Item Schematics ----------------- None Robot Schematics ------------------ None Fabricated ------------ Nothing Alien Tech Used ----------------- None Achievements -------------- None Challenges ------------ None Game ------ Seed LinkedReflectiveDetector Manual? 0 Play Time 00:19:42 Cumulative 5.1 hours Start 2024.04.03 @ 14:52:51 End 2024.04.03 @ 15:14:40 Sessions 1 Manual Loads 0 Difficulty Rogue Special Mode None Game No. 15 Rogue 15 Adventurer 0 Explorer 0 Win Type - Total 0 Types 0/0/0/0/0/0/0/0/0 Lore% 6 Gallery% 10 Achievement% 10 Wizard Run 0 Options --------- Layout 0 ASCII 0 Keyboard 0 Movement Mouse Keybinds 0 Fullscreen 1 Font 24/Smallcaps Map View 76x50 Zoom Use 0% Tactical HUD 1 Map Filters NONE Filters NONE Steam 1 RUN: bf24fbfe-3b31-4884-ba86-7a5f96899d78